fUST/lending_fUST_20260111
["ID","MTS","AMOUNT","RATE_DAILY","PERIOD"]
[401327814,1768139448872,-1638.845663,0.00026,7]
[401327815,1768139448881,-1638.845663,0.00026,7]
[401327816,1768139448890,-239.620179,0.00026,7]
[401327817,1768139448900,-728.329358,0.00026,7]
[401327818,1768139448910,-728.329358,0.00026,7]
[401327819,1768139448919,-728.329358,0.00026,7]
[401327820,1768139448929,-728.329358,0.00026,7]
[401327821,1768139448938,-450.0,0.00026301,2]
[401327822,1768139448947,-2140.41,0.000264,14]
[401327823,1768139448956,-151.0,0.00026439,7]
[401327824,1768139448966,-151.0,0.00026439,7]
[401327825,1768139448975,-155.856993,0.00026439,7]
[401327826,1768139448984,-274.62,0.000265,2]
[401327827,1768139448994,-181.17141011,0.00026725,2]
[401327828,1768139449004,-550.0,0.00026849,2]
[401327829,1768139449013,-274.62,0.000271,2]
[401327830,1768139449022,-645.64650294,0.00027152,2]
[401327831,1768139449032,-1087.80747027,0.00027166,2]
[401327832,1768139449041,-151.0,0.00027204,7]
[401327833,1768139449051,-151.0,0.00027204,7]
[401327834,1768139449060,-151.0,0.00027204,7]
[401327835,1768139449070,-151.0,0.00027204,7]
[401327836,1768139449079,-151.0,0.00027204,7]
[401327837,1768139449088,-151.0,0.00027204,7]
[401327838,1768139449097,-175.0,0.0002737,24]
[401327839,1768139449107,-702.10519323,0.00027397,5]
[401327840,1768139449116,-300.0,0.00027397,2]
[401327841,1768139449125,-300.0,0.00027397,2]
[401327842,1768139449135,-300.0,0.00027397,2]
[401327843,1768139449144,-300.0,0.00027397,2]
[401327844,1768139449153,-526.6,0.00027505,2]
[401327845,1768139449162,-274.62,0.000276,2]
[401327846,1768139449239,-1000.0,0.00027638,30]
[401327847,1768139449255,-1000.0,0.00027638,30]
[401327848,1768139449265,-1000.0,0.00027638,30]
[401327849,1768139449274,-151.0,0.00027945,7]
[401327850,1768139449284,-151.0,0.00027945,7]
[401327851,1768139449294,-155.57399191,0.0002798,5]
[401327852,1768139449304,-5000.0,0.00028037,2]
[401327853,1768139449313,-274.62,0.000281,2]
[401327854,1768139449323,-274.62,0.000286,2]
[401327855,1768139449332,-151.0,0.00028752,7]
[401327856,1768139449342,-151.0,0.00028752,7]
[401327857,1768139449352,-151.0,0.00028752,7]
[401327858,1768139449362,-700.258706,0.00028752,7]
[401327859,1768139449371,-700.258706,0.00028752,7]
[401327860,1768139449380,-700.258706,0.00028752,7]
[401327861,1768139449390,-700.258706,0.00028752,7]
[401327862,1768139449399,-626.25201,0.00028767,60]
[401327863,1768139449409,-155.57399191,0.00028785,5]
[401327864,1768139449419,-156.0,0.00029014,32]
[401327865,1768139449428,-13382.93313115,0.0002902,2]
[401327866,1768139449437,-151.0,0.0002902,7]
[401327867,1768139449447,-258.38,0.00029027,2]
[401327868,1768139449456,-526.6,0.00029087,3]
[401327869,1768139449465,-274.62,0.000291,2]
[401327870,1768139449476,-690.00389627,0.00029152,2]
[401327871,1768139449486,-500.0,0.00029288,7]
[401327872,1768139449495,-4803.37135963,0.00029333,2]
[401327873,1768139449505,-1087.80747027,0.00029551,2]
[401327874,1768139449515,-274.62,0.000296,2]
[401327875,1768139449524,-155.5739919,0.00029676,5]
[401327876,1768139449534,-536.72987461,0.00029845,7]
[401327877,1768139449543,-151.0,0.00030136,14]
[401327878,1768139449553,-300.0,0.00030137,5]
[401327879,1768139449562,-5000.0,0.00030203,2]
[401327880,1768139449572,-164.0,0.00030658,41]
[401327881,1768139449582,-155.57399191,0.00030658,10]
[401327882,1768139449592,-526.6,0.0003067,4]
[401327883,1768139449601,-500.0,0.00030684,120]
[401327884,1768139449611,-2140.41,0.000307,14]
[401327885,1768139449621,-3176.86810454,0.00030798,2]
[401327886,1768139449635,-151.0,0.000308,15]
[401327887,1768139449645,-151.0,0.000308,17]
[401327888,1768139449656,-588120.82157224,0.00030898,2]
[401327889,1768139449671,-151.0,0.00030898,7]
[401327890,1768139449686,-151.0,0.00030898,7]
[401327891,1768139449700,-151.0,0.00030898,31]
[401327892,1768139449712,-700.258706,0.00030898,31]
[401327893,1768139449722,-700.258706,0.00030898,31]
[401327894,1768139449732,-700.258706,0.00030898,31]
[401327895,1768139449740,-700.258706,0.00030898,31]
[401327896,1768139449749,-151.0,0.00030898,31]
[401327897,1768139449758,-151.0,0.00030898,31]
[401327898,1768139449767,-151.0,0.00030898,31]
[401327899,1768139449776,-151.0,0.00030898,31]
[401327900,1768139449786,-151.0,0.00030898,31]
[401327901,1768139449795,-209.953007,0.00030898,31]
[401327902,1768139449805,-221.765393,0.00030898,31]
[401327903,1768139449815,-151.0,0.00030898,31]
[401327904,1768139449824,-204.270776,0.00030898,31]
[401327905,1768139449834,-151.0,0.00030898,31]
[401327906,1768139449843,-151.0,0.00030898,31]
[401327907,1768139449853,-1638.845663,0.00030898,31]
[401327908,1768139449862,-1638.845663,0.00030898,31]
[401327909,1768139449872,-728.329358,0.00030898,31]
[401327910,1768139449882,-728.329358,0.00030898,31]
[401327911,1768139449894,-728.329358,0.00030898,31]
[401327912,1768139449903,-151.0,0.00030898,31]
[401327913,1768139449913,-728.329358,0.00030898,31]
[401327914,1768139449923,-152.162088,0.00030898,2]
[401327915,1768139449934,-151.0,0.00030898,31]
[401327916,1768139449944,-151.0,0.00030898,31]
[401327917,1768139449954,-165.523557,0.00030898,31]
[401327918,1768139449963,-151.0,0.00030898,31]
[401327919,1768139449973,-165.523557,0.00030898,31]
[401327920,1768139449983,-171.590888,0.00030898,31]
[401327921,1768139449992,-168.350881,0.00030898,31]
[401327922,1768139450002,-165.523557,0.00030898,31]
[401327923,1768139450011,-151.0,0.00030898,31]
[401327924,1768139450021,-165.523557,0.00030898,31]
[401327925,1768139450030,-151.0,0.00030898,31]
[401327926,1768139450040,-151.0,0.00030898,31]
[401327927,1768139450050,-179.291309,0.00030898,31]
[401327928,1768139450060,-151.0,0.00030898,31]
[401327929,1768139450070,-179.291309,0.00030898,31]
[401327930,1768139450079,-179.291309,0.00030898,31]
[401327931,1768139450089,-179.291309,0.00030898,31]
[401327932,1768139450099,-151.0,0.00030898,31]
[401327933,1768139450108,-151.0,0.00030898,31]
[401327934,1768139450118,-151.0,0.00030898,31]
[401327935,1768139450128,-151.0,0.00030898,31]
[401327936,1768139450137,-151.0,0.00030898,31]
[401327937,1768139450147,-157.10616,0.00030898,31]
[401327938,1768139450156,-151.0,0.00030898,31]
[401327939,1768139450165,-1390.654024,0.00030898,31]
[401327940,1768139450175,-1390.654024,0.00030898,31]
[401327941,1768139450184,-151.0,0.00030898,31]
[401327942,1768139450193,-1390.654024,0.00030898,31]
[401327943,1768139450202,-1390.654024,0.00030898,31]
[401327944,1768139450212,-151.0,0.00030981,14]
[401327945,1768139450222,-13367.01,0.00031,2]
[401327946,1768139450232,-151.0,0.00031036,2]
[401327947,1768139450242,-151.0,0.00031036,2]
[401327948,1768139450251,-151.0,0.00031036,2]
[401327949,1768139450261,-151.0,0.00031036,2]
[401327950,1768139450270,-151.0,0.00031036,2]
[401327951,1768139450280,-151.0,0.00031036,2]
[401327952,1768139450290,-151.0,0.00031036,2]
[401327953,1768139450300,-151.0,0.00031036,2]
[401327954,1768139450309,-151.0,0.00031036,2]
[401327955,1768139450320,-151.0,0.00031036,2]
[401327956,1768139450329,-151.0,0.00031036,2]
[401327957,1768139450339,-151.0,0.00031036,2]
[401327958,1768139450349,-151.0,0.00031036,2]
[401327959,1768139450358,-151.0,0.00031036,2]
[401327960,1768139450369,-151.0,0.00031036,2]
[401327961,1768139450379,-151.0,0.00031036,2]
[401327962,1768139450388,-151.0,0.00031036,2]
[401327963,1768139450399,-21586.80632037,0.00031036,2]
[401327964,1768139450409,-151.0,0.00031036,2]
[401327965,1768139450418,-151.0,0.00031036,2]
[401327966,1768139450427,-151.0,0.00031036,2]
[401327967,1768139450436,-151.0,0.00031036,2]
[401327968,1768139450446,-151.0,0.00031036,2]
[401327969,1768139450455,-151.0,0.00031036,2]
[401327970,1768139450465,-151.0,0.00031036,2]
[401327971,1768139450475,-151.0,0.00031036,2]
[401327972,1768139450484,-151.0,0.00031036,2]
[401327973,1768139450494,-151.0,0.00031036,2]
[401327974,1768139450504,-151.0,0.00031036,2]
[401327975,1768139450514,-151.0,0.00031036,2]
[401327976,1768139450524,-151.0,0.00031036,2]
[401327977,1768139450534,-151.0,0.00031036,2]
[401327978,1768139450544,-151.0,0.00031036,2]
[401327979,1768139450553,-151.0,0.00031036,2]
[401327980,1768139450562,-151.0,0.00031036,2]
[401327981,1768139450572,-151.0,0.00031036,2]
[401327982,1768139450581,-151.0,0.00031036,2]
[401327983,1768139450591,-151.0,0.00031036,2]
[401327984,1768139450601,-151.0,0.00031036,2]
[401327985,1768139450610,-151.0,0.00031036,2]
[401327986,1768139450620,-151.0,0.00031036,2]
[401327987,1768139450633,-151.0,0.00031036,2]
[401327988,1768139450642,-156.587,0.00031036,2]
[401327989,1768139450652,-152.09143049,0.00031036,2]
[401327990,1768139450661,-734.3612896,0.00031152,2]
[401327991,1768139450672,-551.07,0.00031232,120]
[401327992,1768139450682,-362.0,0.00031273,2]
[401327993,1768139450691,-3671.3441172,0.00031574,2]
[401327994,1768139450702,-263.2879419,0.00031589,30]
[401327995,1768139450712,-628.0,0.00031591,2]
[401327996,1768139450721,-2156.89,0.00031591,2]
[401327997,1768139450734,-417.0,0.00031591,2]
[401327998,1768139450744,-198.35,0.00031591,2]
[401327999,1768139450753,-155.5739919,0.00031606,10]
[401328000,1768139450762,-421.0,0.00031614,2]
[401328001,1768139450771,-424.0,0.00031675,2]
[401328002,1768139450846,-354.0,0.00031787,7]
[401328003,1768139450862,-781.4959678,0.00031795,2]
[401328004,1768139450871,-38151.476305,0.00031795,2]
[401328005,1768139450880,-2344.4879037,0.00031795,2]
[401328006,1768139450890,-151.0,0.00031825,14]
[401328007,1768139450900,-2600.19116857,0.00031846,2]
[401328008,1768139450909,-437.47723609,0.00031876,2]
[401328009,1768139450919,-1087.80747027,0.00031935,2]
[401328010,1768139450928,-629.16420479,0.00031956,2]
[401328011,1768139450937,-7655.95351954,0.00032066,7]
[401328012,1768139450947,-6226.00517252,0.00032066,7]
[401328013,1768139450956,-805.81537613,0.00032066,7]
[401328014,1768139450966,-1648.1167456,0.00032066,7]
[401328015,1768139450975,-2600.19116857,0.0003219,2]
[401328016,1768139450984,-526.6,0.00032252,5]
[401328017,1768139450994,-541.0,0.00032269,2]
[401328018,1768139451003,-1095.40809829,0.00032296,5]
[401328019,1768139451013,-151.0,0.00032296,5]
[401328020,1768139451022,-151.0,0.00032296,5]
[401328021,1768139451031,-151.0,0.00032296,5]
[401328022,1768139451040,-151.0,0.00032296,5]
[401328023,1768139451048,-151.0,0.00032296,5]
[401328024,1768139451056,-151.0,0.00032296,5]
[401328025,1768139451065,-151.0,0.00032296,5]
[401328026,1768139451075,-151.0,0.00032296,5]
[401328027,1768139451084,-250.0,0.00032296,5]
[401328028,1768139451094,-151.0,0.00032296,5]
[401328029,1768139451104,-250.0,0.00032296,5]
[401328030,1768139451114,-250.0,0.00032296,5]
[401328031,1768139451123,-151.0,0.00032296,5]
[401328032,1768139451133,-250.0,0.00032296,5]
[401328033,1768139451143,-151.0,0.00032296,5]
[401328034,1768139451152,-151.0,0.00032296,5]
[401328035,1768139451161,-151.0,0.00032296,5]
[401328036,1768139451171,-151.0,0.00032296,5]
[401328037,1768139451181,-151.0,0.00032296,5]
[401328038,1768139451191,-445.202766,0.00032296,5]
[401328039,1768139451200,-461.67526834,0.00032296,5]
[401328040,1768139451210,-151.0,0.00032296,5]
[401328041,1768139451220,-478.75725327,0.00032296,5]
[401328042,1768139451229,-153.90472729,0.00032296,5]
[401328043,1768139451238,-151.0,0.00032296,5]
[401328044,1768139451248,-496.47127164,0.00032296,5]
[401328045,1768139451258,-151.0,0.00032296,5]
[401328046,1768139451267,-151.0,0.00032296,5]
[401328047,1768139451276,-514.84070869,0.00032296,5]
[401328048,1768139451286,-151.0,0.00032296,5]
[401328049,1768139451295,-151.0,0.00032296,5]
[401328050,1768139451305,-250.15738416,0.00032296,5]
[401328051,1768139451315,-154.07167593,0.00032296,5]
[401328052,1768139451324,-533.88981491,0.00032296,5]
[401328053,1768139451333,-151.0,0.00032296,5]
[401328054,1768139451343,-553.64373807,0.00032296,5]
[401328055,1768139451352,-151.0,0.00032296,5]
[401328056,1768139451361,-296.59935167,0.00032296,5]
[401328057,1768139451371,-574.12855637,0.00032296,5]
[401328058,1768139451380,-595.37131296,0.00032296,5]
[401328059,1768139451390,-617.40005154,0.00032296,5]
[401328060,1768139451400,-760.8076711,0.00032296,5]
[401328061,1768139451409,-250.0,0.00032296,5]
[401328062,1768139451419,-271.40103972,0.00032296,5]
[401328063,1768139451428,-2150.738,0.00032296,5]
[401328064,1768139451438,-2230.315306,0.00032296,5]
[401328065,1768139451447,-2312.83697232,0.00032296,5]
[401328066,1768139451458,-2398.4119403,0.00032296,5]
[401328067,1768139451467,-2487.15318209,0.00032296,5]
[401328068,1768139451477,-2579.17784983,0.00032296,5]
[401328069,1768139451487,-256.83787609,0.00032296,5]
[401328070,1768139451497,-541.0,0.0003236,2]
[401328071,1768139451507,-5000.0,0.0003237,2]
[401328072,1768139451518,-2171.0,0.000324,120]
[401328073,1768139451528,-541.0,0.00032464,2]
[401328074,1768139451538,-1002.20117456,0.00032489,15]
[401328075,1768139451552,-9364.09408815,0.00032505,2]
[401328076,1768139451570,-318.38618949,0.00032505,2]
[401328077,1768139451585,-1273.54475796,0.00032505,2]
[401328078,1768139451600,-2865.47570541,0.00032505,2]
[401328079,1768139451615,-5094.17903184,0.00032505,2]
[401328080,1768139451636,-263.4396422,0.00032505,2]
[401328081,1768139451652,-1053.75856878,0.00032505,2]
[401328082,1768139451668,-2370.95677976,0.00032505,2]
[401328083,1768139451683,-4215.03427514,0.00032505,2]
[401328084,1768139451698,-6585.9910549,0.00032505,2]
[401328085,1768139451713,-9483.82711906,0.00032505,2]
[401328086,1768139451731,-3223.26150452,0.00032515,7]
[401328087,1768139451745,-2600.19116857,0.00032569,2]
[401328088,1768139451757,-7959.65473726,0.00032661,2]
[401328089,1768139451770,-151.61039102,0.0003267,14]
[401328090,1768139451785,-940662.42910052,0.0003267,2]
[401328091,1768139451954,-15869.43451462,0.0003267,2]
[401328092,1768139451969,-1733.72171815,0.0003267,2]
[401328093,1768139452014,-3318.63391889,0.0003267,2]
[401328094,1768139453318,-3938.42946131,0.000129,2]
[401328095,1768139453330,-300.0,0.000129,2]
[401328096,1768139453350,-6516.99428067,0.000129,2]
[401328098,1768139527372,500.0,0.00030136,120]
[401328100,1768139751824,183.0,0.00030137,120]
[401328106,1768139867111,155.0,5.98e-05,2]
[401328112,1768140004502,219.7,5e-05,2]
[401328113,1768140005102,219.7,5.5e-05,2]
[401328114,1768140005661,219.7,6e-05,2]
[401328115,1768140006201,219.7,6.5e-05,2]
[401328116,1768140006758,219.7,7.1e-05,2]
[401328117,1768140007280,219.7,7.6e-05,2]
[401328118,1768140007962,219.7,8.1e-05,2]
[401328119,1768140008507,219.7,8.6e-05,2]
[401328122,1768140035483,219.5,5e-05,2]
[401328138,1768140433621,300.0,8.39e-05,2]
[401328139,1768140481977,153.42,5.974e-05,2]
[401328140,1768140482246,153.42,5.974e-05,2]
[401328141,1768140482561,153.44,5.974e-05,2]
[401328167,1768140637677,-219.7,9.1e-05,2]
[401328168,1768140637686,-547.0,9.1e-05,2]
[401328169,1768140637696,-241.50136369,9.127e-05,2]
[401328170,1768140637705,-196.786,9.208e-05,2]
[401328171,1768140637714,-300.0,9.289e-05,2]
[401328172,1768140637722,-300.0,9.289e-05,2]
[401328173,1768140637732,-300.0,9.289e-05,2]
[401328174,1768140637742,-300.0,9.289e-05,2]
[401328175,1768140637752,-1200.0,9.289e-05,2]
[401328176,1768140637762,-500.0,9.29e-05,2]
[401328177,1768140637771,-240.65630942,9.29e-05,2]
[401328178,1768140637781,-500.0,9.29e-05,2]
[401328179,1768140637790,-210.21015969,9.29e-05,2]
[401328180,1768140637805,-289.78984031,9.29e-05,2]
[401328181,1768140637814,-500.0,9.29e-05,2]
[401328182,1768140637824,-500.0,9.29e-05,2]
[401328183,1768140637833,-500.0,9.29e-05,2]
[401328184,1768140637843,-500.0,9.29e-05,2]
[401328185,1768140637853,-527.97013448,9.29e-05,2]
[401328186,1768140637862,-500.0,9.29e-05,2]
[401328187,1768140637873,-500.0,9.29e-05,2]
[401328188,1768140637883,-500.0,9.29e-05,2]
[401328189,1768140637893,-500.0,9.29e-05,2]
[401328190,1768140637902,-500.0,9.29e-05,2]
[401328191,1768140637911,-636.9296582,9.29e-05,2]
[401328192,1768140637920,-500.0,9.29e-05,2]
[401328193,1768140637929,-500.0,9.29e-05,2]
[401328194,1768140637939,-524.62617307,9.29e-05,2]
[401328195,1768140637948,-500.0,9.29e-05,2]
[401328196,1768140637957,-500.0,9.29e-05,2]
[401328197,1768140637967,-500.0,9.29e-05,2]
[401328198,1768140637976,-500.0,9.29e-05,2]
[401328199,1768140637985,-500.0,9.29e-05,2]
[401328200,1768140637995,-500.0,9.29e-05,2]
[401328201,1768140638004,-500.0,9.29e-05,2]
[401328202,1768140638014,-359.8884099,9.29e-05,2]
[401328203,1768140638023,-500.0,9.29e-05,2]
[401328204,1768140638033,-500.0,9.29e-05,2]
[401328205,1768140638043,-500.0,9.29e-05,2]
[401328206,1768140638052,-1000000.0,9.291e-05,2]
[401328207,1768140638062,-3176.86810458,9.39e-05,2]
[401328208,1768140638071,-50000.0,9.39e-05,2]
[401328209,1768140638081,-500.0,9.392e-05,2]
[401328210,1768140638096,-500.0,9.392e-05,2]
[401328211,1768140638105,-500.0,9.392e-05,2]
[401328213,1768140638114,-500.0,9.392e-05,2]
[401328214,1768140638125,-500.0,9.392e-05,2]
[401328216,1768140638134,-500.0,9.392e-05,2]
[401328218,1768140638145,-500.0,9.392e-05,2]
[401328220,1768140638155,-500.0,9.392e-05,2]
[401328222,1768140638165,-500.0,9.392e-05,2]
[401328223,1768140638174,-500.0,9.392e-05,2]
[401328225,1768140638184,-500.0,9.392e-05,2]
[401328226,1768140638194,-500.0,9.392e-05,2]
[401328228,1768140638204,-500.0,9.392e-05,2]
[401328230,1768140638215,-500.0,9.392e-05,2]
[401328231,1768140638227,-500.0,9.392e-05,2]
[401328232,1768140638236,-300.0,9.583e-05,2]
[401328233,1768140638246,-300.0,9.583e-05,2]
[401328235,1768140638255,-300.0,9.583e-05,2]
[401328236,1768140638266,-300.0,9.583e-05,2]
[401328237,1768140638276,-300.0,9.583e-05,2]
[401328238,1768140638285,-300.0,9.583e-05,2]
[401328239,1768140638295,-300.0,9.583e-05,2]
[401328240,1768140638305,-300.0,9.583e-05,2]
[401328241,1768140638315,-300.0,9.583e-05,2]
[401328242,1768140638325,-300.0,9.583e-05,2]
[401328243,1768140638335,-300.0,9.583e-05,2]
[401328244,1768140638344,-300.0,9.583e-05,2]
[401328245,1768140638354,-300.0,9.583e-05,2]
[401328246,1768140638364,-300.0,9.583e-05,2]
[401328247,1768140638374,-300.0,9.583e-05,2]
[401328248,1768140638384,-600.0,9.583e-05,2]
[401328249,1768140638394,-219.7,9.6e-05,2]
[401328250,1768140638403,-500.0,9.666e-05,2]
[401328251,1768140638418,-500.0,9.94e-05,2]
[401328252,1768140638430,-165060.16,0.0001,2]
[401328253,1768140638440,-219.7,0.000101,2]
[401328254,1768140638450,-500.0,0.00010214,2]
[401328255,1768140638459,-420.0,0.00010218,2]
[401328256,1768140638469,-500.0,0.00010488,2]
[401328257,1768140638478,-720.0,0.00010541,2]
[401328258,1768140638488,-219.7,0.000106,2]
[401328259,1768140638498,-500.0,0.00010762,2]
[401328260,1768140638508,-500.0,0.00010939,2]
[401328261,1768140638517,-191.32,0.00010939,2]
[401328262,1768140638527,-191.32,0.00010939,2]
[401328263,1768140638537,-191.32,0.00010939,2]
[401328264,1768140638552,-999.0,0.00010959,2]
[401328265,1768140638568,-151.0,0.00011,2]
[401328266,1768140638578,-500.0,0.00011036,2]
[401328267,1768140638588,-284.97160916,0.00011127,2]
[401328268,1768140638598,-219.7,0.000112,2]
[401328269,1768140638608,-587.0,0.0001124,2]
[401328270,1768140638618,-500.0,0.0001131,2]
[401328271,1768140638628,-263.2879419,0.00011507,2]
[401328272,1768140638638,-500.0,0.00011584,2]
[401328273,1768140638648,-864.0,0.00011595,2]
[401328274,1768140638658,-219.7,0.000117,2]
[401328275,1768140638668,-500.0,0.00011858,2]
[401328276,1768140638678,-500.0,0.00011906,2]
[401328277,1768140638688,-500.0,0.00011906,2]
[401328278,1768140638698,-500.0,0.00011906,2]
[401328279,1768140638708,-500.0,0.00011906,2]
[401328280,1768140638718,-154.30171575,0.00011906,2]
[401328281,1768140638728,-500.0,0.00011906,2]
[401328282,1768140638739,-500.0,0.00011906,2]
[401328283,1768140638749,-176.23516734,0.00011906,2]
[401328284,1768140638759,-500.0,0.00011906,2]
[401328285,1768140638769,-500.0,0.00011906,2]
[401328286,1768140638779,-500.0,0.00011906,2]
[401328287,1768140638789,-171.65605742,0.00011906,2]
[401328288,1768140638799,-2019.0,0.00011906,2]
[401328289,1768140638809,-500.0,0.00011906,2]
[401328290,1768140638819,-250.0,0.00012024,2]
[401328291,1768140638830,-500.0,0.00012043,2]
[401328292,1768140638840,-500.0,0.00012043,2]
[401328293,1768140638851,-201.95802809,0.00012043,2]
[401328294,1768140638861,-500.0,0.00012043,2]
[401328295,1768140638871,-500.0,0.00012043,2]
[401328296,1768140638881,-500.0,0.00012043,2]
[401328297,1768140638891,-500.0,0.00012043,2]
[401328298,1768140638901,-503.05659276,0.00012043,2]
[401328299,1768140638911,-598.52490689,0.00012043,2]
[401328300,1768140638921,-500.0,0.00012043,2]
[401328301,1768140638931,-2019.0,0.00012043,2]
[401328302,1768140638941,-500.0,0.00012043,2]
[401328303,1768140638951,-187.35985221,0.00012043,2]
[401328304,1768140638961,-448.52259365,0.00012132,2]
[401328305,1768140638971,-223.56062369,0.0001218,2]
[401328306,1768140638980,-500.0,0.0001218,2]
[401328307,1768140638990,-500.0,0.0001218,2]
[401328308,1768140639000,-500.0,0.0001218,2]
[401328309,1768140639010,-500.0,0.0001218,2]
[401328310,1768140639020,-500.0,0.0001218,2]
[401328311,1768140639030,-179.07075974,0.0001218,2]
[401328312,1768140639040,-500.0,0.0001218,2]
[401328313,1768140639050,-163.14839871,0.0001218,2]
[401328314,1768140639060,-2019.0,0.0001218,2]
[401328315,1768140639070,-500.0,0.0001218,2]
[401328316,1768140639079,-219.7,0.000122,2]
[401328317,1768140639089,-250.0,0.00012317,2]
[401328318,1768140639099,-500.0,0.00012317,2]
[401328319,1768140639108,-300.0,0.00012317,2]
[401328320,1768140639118,-500.0,0.00012317,2]
[401328321,1768140639127,-500.0,0.00012317,2]
[401328322,1768140639138,-500.0,0.00012317,2]
[401328323,1768140639147,-2019.0,0.00012317,2]
[401328324,1768140639157,-500.0,0.00012317,2]
[401328325,1768140639167,-1298.73,0.00012329,2]
[401328326,1768140639176,-1216.18,0.00012329,2]
[401328327,1768140639185,-1013.48,0.00012329,2]
[401328328,1768140639195,-844.57,0.00012329,2]
[401328329,1768140639204,-703.81,0.00012329,2]
[401328330,1768140639214,-586.51,0.00012329,2]
[401328331,1768140639226,-488.75,0.00012329,2]
[401328332,1768140639235,-407.3,0.00012329,2]
[401328333,1768140639243,-339.41,0.00012329,2]
[401328334,1768140639252,-282.84,0.00012329,2]
[401328335,1768140639260,-235.7,0.00012329,2]
[401328336,1768140639270,-196.42,0.00012329,2]
[401328337,1768140639278,-163.68,0.00012329,2]
[401328338,1768140639287,-818.45,0.00012329,2]
[401328339,1768140639297,-151.88,0.00012329,2]
[401328340,1768140639305,-916.86617812,0.00012329,2]
[401328341,1768140639314,-916.86617812,0.00012329,2]
[401328342,1768140639323,-916.86617812,0.00012329,2]
[401328343,1768140639332,-916.86617812,0.00012329,2]
[401328344,1768140639342,-916.86617812,0.00012329,2]
[401328345,1768140639352,-916.86617812,0.00012329,2]
[401328346,1768140639361,-916.86617812,0.00012329,2]
[401328347,1768140639371,-916.86617812,0.00012329,2]
[401328348,1768140639384,-916.86617812,0.00012329,2]
[401328349,1768140639393,-916.86617812,0.00012329,2]
[401328350,1768140639403,-916.86617812,0.00012329,2]
[401328351,1768140639413,-916.86617812,0.00012329,2]
[401328352,1768140639423,-916.86617812,0.00012329,2]
[401328353,1768140639432,-916.86617812,0.00012329,2]
[401328354,1768140639441,-916.86617812,0.00012329,2]
[401328355,1768140639451,-916.86617812,0.00012329,2]
[401328356,1768140639460,-916.86617812,0.00012329,2]
[401328357,1768140639470,-916.86617812,0.00012329,2]
[401328359,1768140639479,-916.86617812,0.00012329,2]
[401328360,1768140639489,-916.86617812,0.00012329,2]
[401328361,1768140639498,-916.86617812,0.00012329,2]
[401328362,1768140639507,-916.86617812,0.00012329,2]
[401328363,1768140639517,-916.86617812,0.00012329,2]
[401328364,1768140639526,-916.86617812,0.00012329,2]
[401328365,1768140639536,-916.86617812,0.00012329,2]
[401328367,1768140639546,-916.86617812,0.00012329,2]
[401328369,1768140639556,-916.86617812,0.00012329,2]
[401328371,1768140639565,-916.86617812,0.00012329,2]
[401328373,1768140639575,-916.86617812,0.00012329,2]
[401328375,1768140639585,-916.86617812,0.00012329,2]
[401328376,1768140639596,-916.86617812,0.00012329,2]
[401328377,1768140639605,-916.86617812,0.00012329,2]
[401328379,1768140639615,-916.86617812,0.00012329,2]
[401328381,1768140639625,-916.86617812,0.00012329,2]
[401328383,1768140639635,-916.86617812,0.00012329,2]
[401328385,1768140639645,-916.86617812,0.00012329,2]
[401328387,1768140639655,-916.86617812,0.00012329,2]